[Event "Icelandic Championship 2024"]
[Site "Mosfellsbaer"]
[Date "2024.04.20"]
[Round "5.3"]
[White "Ragnarsson, Dagur"]
[Black "Kjartansson, Gudmundur"]
[Result "1-0"]
[ECO "D02"]
[WhiteElo "2333"]
[BlackElo "2480"]
[Annotator "TA"]
[PlyCount "37"]
[EventDate "2024.04.16"]
[EventType "tourn"]
[EventCountry "ISL"]
[SourceTitle "playchess.com"]
[Source "ChessBase"]
[SourceQuality "1"]
[TimeControl "40/5400+30:1800+30"]

{[%evp 9,37,-11,-1,-72,-29,-54,0,-25,-29,-39,-27,-50,-39,-42,-22,-25,20,22,76,0,0,0,33,13,72,66,366,361,1181,1172]} 1. Nf3 {[%emt 0:00:04]} d5 {[%emt 0:00:16]} 2. g3 {[%emt 0:00:07]} Nc6 {[%emt 0:01:08]} 3. d4 {[%emt 0:00:08]} Bf5 {[%emt 0:02:32]} 4. Bg2 {[%emt 0:00:58]} Qd7 {[%emt 0:02:21]} 5. h3 {[%emt 0:00:26]} O-O-O {[%emt 0:02:12]} 6. Nh4 {[%emt 0:17:18]} (6. c3 $11) 6... Be6 {[%emt 0:03:51]} 7. f4 {[%emt 0:00:59]} h5 {[%emt 0:10:50]} (7... Kb8 $15) 8. e3 {[%emt 0:08:28] The position is equal.} g6 {[%emt 0:01:03]} 9. Nd2 {[%emt 0:00:06]} Nh6 {[%emt 0:01:45]} 10. Nb3 {[%emt 0:01:21]} b6 {[%emt 0:01:46] Inhibits Nc5.} 11. Qe2 {[%emt 0:21:31]} a5 {[%emt 0:06:13]} 12. Bd2 {[%emt 0:01:18]} Nf5 {[%emt 0:02:23]} 13. Nxf5 {[%emt 0:00:12]} Bxf5 {[%emt 0:00:20]} (13... gxf5 $11 {remains equal.} 14. h4 f6) 14. Qa6+ {[%emt 0:08:04]} (14. c4 $1 $16 {[%cal Rc4d5]} e6 15. c5) 14... Kb8 $11 {[%emt 0:00:06]} 15. c4 {[%emt 0:00:05]} Bd3 {[%emt 0:05:45]} 16. Rc1 $40 {[%emt 0:09:43][%cal Ob3c5][%mdl 128] White attacks.} (16. Bxd5 Qxd5 17. cxd5 Bxa6 $17) 16... e6 {[%emt 0:01:10] [#]} (16... dxc4 $2 {too greedy.} 17. Nxa5 bxa5 18. Bxc6 $18) (16... Bxc4 $2 17. Rxc4 e6 (17... dxc4 $2 18. Nxa5 bxa5 19. Bxc6 $18) 18. Rxc6 Qxc6 19. Nxa5 $18) (16... e5 $11 {keeps the balance.} 17. dxe5 Qf5 (17... Bxc4 $2 18. Rxc4 h4 19. Rxc6 $18)) 17. a3 $1 $16 {[%emt 0:00:22]} Bxc4 $2 {[%emt 0:08:09][%mdl 8192]} (17... dxc4 $2 {loses.} 18. Nxa5 bxa5 19. Bxc6 $18) (17... Be4 $14 18. Bxe4 dxe4) 18. Rxc4 $18 {[%emt 0:00:16]} dxc4 $2 {[%emt 0:00:06] [#]} (18... Na7 19. Rc3 Qc8) 19. Nxa5 $1 {[%emt 0:00:59][%mdl 512] Weighted Error Value: White=0.21 (precise) /Black=0.58.  Loses game:     	---       	Black=1      Mistake:       	White=1     	Black=4      Inaccurate:     	---       	Black=3      OK:         	White=3     	---        Strong:       	White=1     	---        Brilliant:      	White=1     	---} 1-0

[Event "Icelandic Championship 2024"]
[Site "Mosfellsbaer"]
[Date "2024.04.20"]
[Round "5.4"]
[White "Gretarsson, Hjorvar Steinn"]
[Black "Domalchuk-Jonasson, Aleksandr"]
[Result "1-0"]
[ECO "C70"]
[WhiteElo "2518"]
[BlackElo "2368"]
[Annotator "TA"]
[PlyCount "69"]
[EventDate "2024.04.16"]
[EventType "tourn"]
[EventCountry "ISL"]
[SourceTitle "playchess.com"]
[Source "ChessBase"]
[SourceQuality "1"]
[TimeControl "40/5400+30:1800+30"]

{[%evp 9,69,54,56,56,73,61,56,60,49,47,61,40,37,52,31,34,38,41,32,41,17,23,23,43,38,24,102,102,126,100,105,98,89,71,216,210,200,171,204,209,362,362,353,354,454,448,587,570,629,630,638,612,580,576,622,627,645,630,778,788,720,572]} 1. e4 {[%emt 0:00:04]} e5 {[%emt 0:00:14]} 2. Nf3 {[%emt 0:00:05]} Nc6 {[%emt 0:00:14]} 3. Bb5 {[%emt 0:00:07][%cal Bf1b5,Bb5a4,Ba4b3][%mdl 32]} a6 {[%emt 0:00:19]} 4. Ba4 {[%emt 0:00:06]} f5 {[%emt 0:00:11]} 5. d4 {[%emt 0:02:27]} exd4 {[%emt 0:00:11]} 6. e5 {[%emt 0:00:17][%cal Oe1g1]} (6. Nxd4 Nxd4 7. Qxd4 Nf6 $16) (6. exf5 Qe7+ 7. Kf1 Qe4 $11) 6... b5 {[%emt 0:00:09]} 7. Bb3 {[%emt 0:00:33][%cal Oe1g1]} Bb7 {[%emt 0:00:53]} 8. O-O {[%emt 0:15:46][%cal Of1e1] White is slightly better.} (8. Nxd4 $2 Nxd4 9. Qxd4 c5 $19) 8... Na5 $1 {[%emt 0:00:17]} 9. Nxd4 {[%emt 0:08:45]} (9. Qxd4 c5 10. Qf4 c4 $15) 9... c5 {[%emt 0:00:21][%cal Bc7c5,Bc5c4][%mdl 32]} 10. Nxf5 {[%emt 0:10:18] White is more active.} c4 $1 {[%emt 0:00:11][%cal Od8b6]} 11. Qg4 {[%emt 0:17:23]} Qb6 $1 {[%emt 0:13:04]} 12. Nxg7+ {[%emt 0:13:37]} (12. Be3 Qg6 13. Qh3 (13. Qxg6+ $2 hxg6 14. Nd6+ Bxd6 $19) 13... cxb3 14. cxb3 Qe6 $19 (14... Nc6 15. Nd2 $17)) 12... Bxg7 {[%emt 0:01:13]} 13. Qxg7 {[%emt 0:00:06]} Qg6 {[%emt 0:01:02]} 14. Qxg6+ {[%emt 0:00:16]} (14. Qxh8 $2 Qxg2#) (14. Bh6 $2 Qxh6 15. Qxh8 O-O-O $19) 14... hxg6 {[%emt 0:00:04]} 15. Bd2 {[%emt 0:01:16]} Nc6 {[%emt 0:00:25] [#]} 16. Bxc4 $1 {[%emt 0:00:19]} bxc4 {[%emt 0:00:08]} 17. Na3 {[%emt 0:00:30]} Nce7 {[%emt 0:16:24]} (17... Nxe5 $2 18. Rae1 d6 19. f4 $18) (17... Nd4 $11) 18. Nxc4 $16 {[%emt 0:02:19] Hoping for Nd6+.} Nf5 {[%emt 0:00:28]} 19. Bg5 {[%emt 0:05:25]} Rc8 {[%emt 0:08:13]} 20. b3 {[%emt 0:00:35]} Rc5 {[%emt 0:00:09]} 21. Rfe1 {[%emt 0:09:18]} Kf8 {[%emt 0:37:58] A mistake that costs the game.} (21... Bd5 $16) 22. Rad1 $18 {[%emt 0:01:49]} Rh7 {[%emt 0:01:14]} 23. Rd2 {[%emt 0:03:19]} Bc6 {[%emt 0:05:41]} 24. e6 {[%emt 0:04:01]} Rd5 $2 {[%emt 0:07:59]} (24... dxe6 {was necessary.} 25. Rd8+ (25. Rxe6 Rd7 $16) 25... Kf7 26. Ne5+ Kg7) 25. Ne5 {[%emt 0:00:46] [#] aiming for Rxd5.} Rxd2 {[%emt 0:01:59]} 26. Bxd2 {[%emt 0:00:07]} Nf6 {[%emt 0:02:16]} 27. Bg5 {[%emt 0:01:19] White is clearly winning.} ({Not} 27. Nxg6+ Kg8 28. Ne5 Re7 29. exd7 Bxd7 $18) 27... Kg7 {[%emt 0:01:19]} 28. Rd1 {[%emt 0:00:46] Dodges Nd4} Rh8 {[%emt 0:01:18]} 29. exd7 {[%emt 0:01:02]} Bxd7 {[%emt 0:00:26]} 30. Bxf6+ {[%emt 0:00:28]} ({Weaker is} 30. Rxd7+ Nxd7 31. Nxd7 Re8 $16) 30... Kxf6 {[%emt 0:00:04]} 31. Nxd7+ {[%emt 0:00:04] KRN-KRN} Ke7 {[%emt 0:00:06]} 32. Ne5 {[%emt 0:00:27]} Rc8 {[%emt 0:00:10]} 33. c4 {[%emt 0:00:28]} Kf6 {[%emt 0:00:29]} 34. f4 {[%emt 0:00:26]} g5 {[%emt 0:00:00]} 35. Ng4+ {[%emt 0:00:44] Weighted Error Value: White=0.05 (flawless) /Black=0.35.  Mistake:       	---       	Black=3      Inaccurate:     	---       	Black=1      OK:         	White=13    	Black=7      Best:        	White=3     	Black=1      Strong:       	---       	Black=3      Brilliant:      	White=1     	---} 1-0

[Event "Icelandic Championship 2024"]
[Site "Mosfellsbaer"]
[Date "2024.04.20"]
[Round "5.5"]
[White "Prudnykova, Olga"]
[Black "Gretarsson, Helgi Ass"]
[Result "0-1"]
[ECO "B06"]
[WhiteElo "2263"]
[BlackElo "2468"]
[Annotator "TA"]
[PlyCount "78"]
[EventDate "2024.04.16"]
[EventType "tourn"]
[EventCountry "ISL"]
[SourceTitle "playchess.com"]
[Source "ChessBase"]
[SourceQuality "1"]
[TimeControl "40/5400+30:1800+30"]

{[%evp 9,78,43,52,30,70,70,62,44,56,47,46,19,49,28,16,0,20,-13,3,0,33,-18,-8,-21,-2,-5,35,-52,-37,-137,-153,-140,-142,-133,-68,-107,-64,-72,-59,-98,-60,-95,-85,-81,-108,-112,-69,-157,-133,-206,-209,-261,-201,-359,-395,-379,-360,-996,-974,-1897,-1781,-1740,-1920,-1994,-1868,-2180,-1854,-2802,-2234,-29989,-29990]} 1. e4 {[%emt 0:00:02]} g6 {[%emt 0:00:09]} 2. d4 {[%emt 0:00:05]} Bg7 {[%emt 0:00:02]} 3. Nc3 {[%emt 0:00:09]} d6 {[%emt 0:00:03]} 4. Be3 {[%emt 0:00:37]} a6 {[%emt 0:00:06]} 5. Qd2 {[%emt 0:00:15]} b5 {[%emt 0:00:10]} 6. h4 {[%emt 0:00:06]} h6 {[%emt 0:00:05]} 7. f3 {[%emt 0:02:09]} Bb7 {[%emt 0:00:15]} 8. a4 {[%emt 0:08:53] White is slightly better.} c6 {[%emt 0:16:32]} 9. Nh3 {[%emt 0:07:46][%cal Ra4b5]} Nd7 {[%emt 0:00:50]} 10. g4 {[%emt 0:10:42][%cal Bg2g4,Bg4g5][%mdl 32]} e6 {[%emt 0:24:36]} 11. g5 {[%emt 0:11:57][%cal Oh4h5]} h5 {[%emt 0:03:48]} 12. Nf4 {[%emt 0:03:43]} Ne7 {[%emt 0:01:13]} 13. Bh3 {[%emt 0:12:25][%cal Oh3e6]} O-O $1 {[%emt 0:02:50]} 14. Nd3 {[%emt 0:02:16]} Qc7 {[%emt 0:20:59]} 15. Qh2 {[%emt 0:13:28]} (15. O-O $14) 15... Nb6 {[%emt 0:02:36]} 16. Bf4 {[%emt 0:05:51]} Nc4 {[%emt 0:04:34]} 17. Ne2 {[%emt 0:01:04]} Rad8 {[%emt 0:06:37]} 18. b3 {[%emt 0:01:01]} (18. O-O $1 $14) 18... e5 $1 $15 {[%emt 0:01:37]} 19. Bc1 {[%emt 0:07:14] [#]} (19. bxc4 $15 exf4 20. cxb5) 19... exd4 $1 $17 {[%emt 0:00:35]} 20. bxc4 {[%emt 0:00:15]} bxc4 {[%emt 0:00:05]} 21. Nb2 {[%emt 0:01:14]} Qa5+ {[%emt 0:00:07]} (21... d3 $1 $17 {[%cal Rd3e2]} 22. cxd3 cxd3) 22. Kf1 {[%emt 0:03:21]} ({But not} 22. Bd2 $2 c3 23. O-O cxd2 $19) 22... d5 {[%emt 0:00:33][%mdl 1024] Black has strong compensation.} 23. e5 {[%emt 0:00:45][%cal Of3f4]} c5 {[%emt 0:01:15]} 24. f4 $1 {[%emt 0:03:05]} Nc6 {[%emt 0:00:39]} (24... d3 {seems wilder.} 25. cxd3 cxd3 26. Nxd3 d4) 25. Qf2 {[%emt 0:01:30]} Nb4 {[%emt 0:00:32]} 26. Ng3 {[%emt 0:00:58]} d3 $36 {[%emt 0:00:39][%mdl 2048] Black is in control.} 27. cxd3 {[%emt 0:00:49]} c3 {[%emt 0:00:05]} ({Reject} 27... Nxd3 $6 28. Nxd3 cxd3 29. Bg2 $11) ({Stronger than} 27... cxd3 28. Bd2 $16) 28. Nd1 {[%emt 0:01:07]} ({White should try} 28. d4 $1 $15) 28... Nxd3 {[%emt 0:00:05] Black is more active.} 29. Qc2 {[%emt 0:00:48] [#]} (29. Qe2 $17 c4 30. Bg2) 29... Nxe5 $1 $19 {[%emt 0:03:12][%mdl 512]} 30. fxe5 {[%emt 0:00:30]} (30. Rb1 Bc6) 30... Bxe5 {[%emt 0:00:00][%cal Od5d4] Hoping for ...d4!} 31. Rg1 $2 {[%emt 0:00:53]} (31. Rb1 {is a better defense.} Bc6 32. Nxc3) 31... d4 {[%emt 0:00:09] ...d3 would now be deadly.} 32. Nf2 {[%emt 0:00:13]} c4 {[%emt 0:00:09] And now ...d3 would win.} 33. Qe2 {[%emt 0:01:17]} (33. Qb1 Bd5 34. Nf5) 33... d3 {[%emt 0:00:10]} 34. Qd1 {[%emt 0:00:29]} c2 {[%emt 0:02:25]} 35. Qd2 {[%emt 0:00:18]} Qxd2 {[%emt 0:00:33]} 36. Bxd2 {[%emt 0:00:02]} Bxa1 {[%emt 0:00:06]} 37. Nge4 {[%emt 0:00:26] [#]} c3 $1 {[%emt 0:01:15]} 38. Bc1 {[%emt 0:01:15]} (38. Nf6+ Kh8) 38... d2 {[%emt 0:00:08]} 39. Ke2 {[%emt 0:00:12]} Bxe4 {[%emt 0:00:24] Weighted Error Value: White=1.18/Black=0.52.  Mistake:       	White=7     	Black=1      Inaccurate:     	White=5     	Black=6      OK:         	White=7     	Black=7      Best:        	White=1     	Black=5      Strong:       	White=1     	Black=3      Brilliant:      	---       	Black=1} 0-1

[Event "Icelandic Championship 2024"]
[Site "Mosfellsbaer"]
[Date "2024.04.20"]
[Round "5.6"]
[White "Heimisson, Hilmir Freyr"]
[Black "Stefansson, Hannes"]
[Result "1-0"]
[ECO "C58"]
[WhiteElo "2361"]
[BlackElo "2493"]
[Annotator "TA"]
[PlyCount "73"]
[EventDate "2024.04.16"]
[EventType "tourn"]
[EventCountry "ISL"]
[SourceTitle "playchess.com"]
[Source "ChessBase"]
[SourceQuality "1"]
[TimeControl "40/5400+30:1800+30"]

{[%evp 14,73,31,48,47,35,35,20,8,21,14,27,21,20,8,21,15,15,20,7,29,5,8,1,4,6,41,43,35,21,40,39,97,95,107,54,65,72,60,72,84,87,82,71,93,80,106,104,140,134,215,230,429,427,664,641,723,665,2339,711,29989,29990]} 1. e4 {[%emt 0:05:19]} e5 {[%emt 0:00:40]} 2. Nf3 {[%emt 0:00:43]} Nc6 {[%emt 0:00:16]} 3. Bc4 {[%emt 0:00:52]} Nf6 {[%emt 0:00:14][%cal Bg8f6,Bf6d5,Bd5f4,Bf4d3][%mdl 32]} 4. Ng5 {[%emt 0:00:46]} d5 {[%emt 0:00:11]} 5. exd5 {[%emt 0:00:07]} Na5 {[%emt 0:00:13]} 6. Bb5+ {[%emt 0:00:13]} c6 {[%emt 0:00:17]} 7. dxc6 {[%emt 0:00:54]} bxc6 {[%emt 0:00:20]} 8. Bd3 {[%emt 0:00:11]} Nd5 {[%emt 0:00:42]} 9. Nf3 {[%emt 0:00:27]} (9. Nxh7 $2 Nf4 10. Be4 Rxh7 $17) 9... Bd6 {[%emt 0:02:12]} 10. O-O {[%emt 0:00:25]} Nf4 {[%emt 0:00:46] The position is equal.} 11. Nc3 {[%emt 0:02:39]} Nxd3 {[%emt 0:00:37]} 12. cxd3 {[%emt 0:00:10]} O-O {[%emt 0:00:54]} 13. Re1 {[%emt 0:02:52][%cal Oc3e4]} Re8 {[%emt 0:07:17]} 14. Ne4 {[%emt 0:02:30]} c5 {[%emt 0:08:55]} 15. b3 {[%emt 0:07:30]} Nc6 {[%emt 0:04:43]} 16. Ba3 {[%emt 0:09:57][%cal Oa1c1]} Bg4 {[%emt 0:00:57]} 17. Nxd6 {[%emt 0:15:05]} (17. Bxc5 Bxc5 18. Rc1 (18. Nxc5 Nd4 $17) 18... Bxf3 19. gxf3 Bxf2+ 20. Nxf2 Nd4 $17) 17... Qxd6 {[%emt 0:00:28]} 18. Rc1 {[%emt 0:00:08]} Qxd3 {[%emt 0:09:51] And now ...e4 would win.} 19. Re3 {[%emt 0:09:08]} (19. Bxc5 e4 20. Re3 Qd7 $15) 19... Qd7 {[%emt 0:13:32]} 20. h3 {[%emt 0:05:43]} Bh5 {[%emt 0:00:32]} 21. Rxc5 {[%emt 0:08:59]} (21. Bxc5 e4 22. g4 exf3 23. gxh5 Rxe3 24. Bxe3 Nd4 $15 (24... Qxh3 25. Qf1 $11)) 21... f6 {[%emt 0:14:42]} 22. Qc2 {[%emt 0:04:16]} Re6 {[%emt 0:03:53]} (22... Nd8 $14) 23. Qc4 {[%emt 0:01:34][%cal Od2d4] aiming for d4!} Bf7 {[%emt 0:02:11]} 24. Qa4 {[%emt 0:01:25]} (24. Rc3 $16 {[%cal Rc5c6]} Rc8 25. Qa6) 24... Be8 {[%emt 0:02:15]} 25. Rec3 {[%emt 0:03:30]} e4 {[%emt 0:01:47]} 26. Nh2 {[%emt 0:04:23][%cal Bf3h2,Bh2f1,Bf1e3,Be3d5,Bd5c7,Bc7e8,Be8f6][%mdl 32]} Qxd2 {[%emt 0:02:26] [#] Hoping for ...Nd4.} 27. Nf1 $1 {[%emt 0:08:50]} (27. Rxc6 $2 e3 28. Rxe3 (28. fxe3 $2 Bxc6 29. Rxc6 Qxe3+ 30. Kh1 Qe1+ $19) 28... Bxc6 $19 (28... Rxc6 $2 29. Nf1 $19)) 27... Qd7 {[%emt 0:07:29]} 28. Ne3 {[%emt 0:00:21]} Kh8 {[%emt 0:00:50]} 29. Rc1 {[%emt 0:00:39]} Rd8 {[%emt 0:03:03]} 30. Rd5 {[%emt 0:02:49]} Qc8 {[%emt 0:00:26]} 31. Qc4 {[%emt 0:00:56] Rxd8 is the strong threat. White has more active pieces.} Rxd5 {[%emt 0:00:23]} (31... Bf7 $16 32. Qb5 Be8) 32. Nxd5 $40 {[%emt 0:00:14][%cal Od5c7][%mdl 128] Threatens to win with Nc7! White wants a kill.} ({Don't take} 32. Qxd5 $6 Qd7 33. Rd1 Qxd5 34. Nxd5 (34. Rxd5 Kg8 $16) 34... e3) 32... Qd7 {[%emt 0:01:01]} (32... e3 {is a better defense.} 33. Nxe3 (33. fxe3 Bd7 $18) 33... Qd7) 33. Nc7 $1 {[%emt 0:01:29]} Re5 {[%emt 0:02:29]} (33... Nd8 $142 34. Nxe6 Nxe6 35. Qxe4 Kg8) 34. Nxe8 {[%emt 0:00:14]} Na5 {[%emt 0:00:06]} 35. Qa6 {[%emt 0:00:59][%cal Oe8f6] Intending Nxf6! and mate.} e3 {[%emt 0:00:43]} 36. fxe3 {[%emt 0:00:18][%cal Oe8f6] Nxf6! would kill now.} Qd2 {[%emt 0:01:49] [#]} 37. Nxf6 $1 {[%emt 0:00:40] Weighted Error Value: White=0.08 (flawless) /Black=0.44.  Mistake:       	White=1     	Black=4      Inaccurate:     	---       	Black=3      OK:         	White=13    	Black=9      Best:        	White=2     	Black=1      Strong:       	White=2     	---} 1-0

[Event "Icelandic Championship 2024"]
[Site "Mosfellsbaer"]
[Date "2024.04.21"]
[Round "6.1"]
[White "Steingrimsson, Hedinn"]
[Black "Stefansson, Hannes"]
[Result "1/2-1/2"]
[ECO "D38"]
[WhiteElo "2502"]
[BlackElo "2493"]
[Annotator "TA"]
[PlyCount "49"]
[EventDate "2024.04.16"]
[EventType "tourn"]
[EventCountry "ISL"]
[SourceTitle "playchess.com"]
[Source "ChessBase"]
[SourceQuality "1"]
[TimeControl "40/5400+30:1800+30"]

{[%evp 12,49,20,19,15,17,12,10,25,5,17,8,4,13,21,12,16,16,19,16,12,0,18,9,15,6,40,35,43,0,0,0,0,-5,0,0,0,0,0,0]} 1. d4 {[%emt 0:02:59]} Nf6 {[%emt 0:00:20]} 2. c4 {[%emt 0:00:04]} e6 {[%emt 0:00:19]} 3. Nf3 {[%emt 0:00:04]} d5 {[%emt 0:01:17]} 4. Nc3 {[%emt 0:00:07]} Bb4 {[%emt 0:01:12]} 5. cxd5 {[%emt 0:00:43]} exd5 {[%emt 0:00:35]} 6. Bg5 {[%emt 0:00:19]} h6 {[%emt 0:01:53]} 7. Bh4 {[%emt 0:00:04]} O-O {[%emt 0:01:48]} 8. e3 {[%emt 0:00:16]} Bf5 {[%emt 0:02:44]} 9. Be2 {[%emt 0:00:56]} Nbd7 {[%emt 0:00:54]} 10. Qb3 {[%emt 0:00:04]} Bxc3+ {[%emt 0:01:44]} 11. Qxc3 {[%emt 0:00:10]} c6 {[%emt 0:05:29]} 12. Nd2 {[%emt 0:00:57][%cal Bf3d2,Bd2f1,Bf1g3][%mdl 32]} Bg6 {[%emt 0:07:57]} 13. a4 {[%emt 0:13:24]} Ne4 {[%emt 0:08:44]} 14. Bxd8 {[%emt 0:00:30]} Nxc3 {[%emt 0:00:07]} 15. bxc3 {[%emt 0:00:10]} Rfxd8 {[%emt 0:00:25]} 16. Nf1 {[%emt 0:17:16]} c5 {[%emt 0:01:13]} 17. Ng3 {[%emt 0:06:06]} Rac8 {[%emt 0:02:15]} 18. Kd2 {[%emt 0:02:09]} cxd4 {[%emt 0:17:28]} 19. exd4 {[%emt 0:00:08]} Nb6 {[%emt 0:04:25]} 20. a5 {[%emt 0:07:36]} Nc4+ {[%emt 0:01:17] The position is equal.} 21. Bxc4 {[%emt 0:00:03]} dxc4 {[%emt 0:00:12]} ({Of course not} 21... Rxc4 22. Rhe1 $14) 22. Rhe1 {[%emt 0:01:41]} Rd5 {[%emt 0:01:58]} 23. Ra2 {[%emt 0:05:34]} Rb5 {[%emt 0:00:39]} 24. Ne4 {[%emt 0:02:00]} Bxe4 {[%emt 0:05:43]} 25. Rxe4 {[%emt 0:00:08] Weighted Error Value: White=0.05 (flawless) /Black=0.05 (flawless) .  Inaccurate:     	White=1     	Black=1      OK:         	White=8     	Black=9} 1/2-1/2